Workbook

Sheet Page 1-3 (2)
A1: USDA Good Agricultural Practices Good Handling Practices
A2: Audit Verification Checklist
A13: This program is intended to assess a participant’s efforts to minimize the risk of contamination of fresh fruits, vegetables, nuts and miscellaneous commodities by microbial pathogens based on the U.S. Food and Drug Administration’s “Guide to Minimize Microbial Food Safety Hazards for Fresh Fruits and Vegetables,” and generally recognized good agricultural practices.
A17: Firm Name:
A18: Contact Person:
A19: Audit Site Address:
A20: City: | G20: State: | L20: Zip:
A21: Mailing Address:
A22: City: | G22: State: | L22: Zip:
A23: Telephone No: | I23: Fax:
A24: E-mail:
A26: Auditor(s) (list all auditors with the lead listed first):
A28: USDA or Fed-State Office performing audit:
A29: Arrival Date: | H29: Time:
A30: Departure Date: | H30: Time:
A31: Travel Time (hours)
A33: Person(s) Interviewed:
A36: Did the auditee participate in GAP & GHP training?
A38: Yes | I38: No
A40: Is there a map that accurately represents the farm operations?
A42: Yes | I42: No | L42: N/A
A43: Legal Description/GPS/Lat.&Long. of Location:
A44: Are all crop production areas located on this audit site?
A46: Yes | I46: No | L46: N/A
A47: Total acres farmed (Owned, leased/rented, contracted, consigned):
A48: Does the company have more than one packing facility?
A50: Yes | I50: No | L50: N/A
A51: Is there a floor plan of the packing house facility(s) indicating flow of product, storage areas, cull areas, employee break rooms, restrooms, offices?
A53: Yes | I53: No | L53: N/A
A54: Is any product commingled prior to packing?
A56: Yes | I56: No
A58: Audit Scope: (Please check all scopes audited)
A59: General Questions (All audits must begin with and pass this portion)
A61: Part 1 – Farm Review…………………………………………………………………………...…..…..
A63: Part 2 - Field Harvest and Field Packing Activities…………………………………...……..…….
A65: Part 3 - House Packing Facility…………………………………………………………………...….
A67: Part 4 – Storage and Transportation…………………………………………………...……….…...
A69: Part 5 – (Not Used)
A71: Part 6 – Wholesale Distribution Center/Terminal Warehouse.…………………………............
A73: Part 7 – Preventive Food Defense Procedures.………………………….…………...….
A75: Commodities:
A76: Conditions Under Which an Automatic "Unsatisfactory"
A77: Will be Assessed
A78: • An immediate food safety risk is present when produce is grown, processed,
A79: packed or held under conditions that promote or cause the produce to become
A80: contaminated.
A81: • The presence or evidence of rodents, an excessive amount of insects or other
A82: pests in the produce during packing, processing or storage.
A83: • Observation of employee practices (personal or hygienic) that have jeopardized
A84: or may jeopardize the safety of the produce.
A85: • Falsification of records.
A86: • Answering of Questions P1 or P2 as “NO”.
A87: Auditor Completion Instructions
A88: • For clarification and guidance in answering these questions, please refer to the
A89: Good Agricultural Practices & Good Handling Practices Audit Verification
A90: Program Policy and Instruction Guide.
A91: • Place the point value for each question in the proper column (Yes, No, or N/A).
A92: • Gray boxes in the “N/A” column indicate that question cannot be answered
A93: “N/A”.
A94: • Any “N/A” or “No” designation must be explained in the comments section.
A95: • The "Doc" column:
A96: • | B96: A "D" indicates that a document(s) is required to show conformance to the question. A document may be a combination of standard operating procedures outlining company policy as well as a record indicating that a particular action was taken.
A97: • | B97: A "R" indicates that a record is required to be kept showing an action was taken.
A98: • | B98: A "P" indicates that a policy/standard operating procedure (SOP) must be documented in the food safety plan in order to show conformance to the question.

Sheet Pg. 4 General Questions (2)
A1: General Questions
A2: Implementation of a Food Safety Program
A3: Questions | K3: Points | L3: Yes | M3: NO | N3: N/A | O3: Doc | P3: Manual Page
A4: P-1 | B4: A documented food safety program that | O4: D | P4: The whole thing
B5: incorporates GAP and/or GHP has been
B6: implemented.
A7: P-2 | B7: The operation has designated someone to | O7: D | P7: 1
B8: implement and oversee an established food
B9: safety program.
B10: Name
A12: Traceability
A13: Questions | K13: Points | L13: Yes | M13: NO | N13: N/A | O13: Doc | P13: Manual Page
A14: G-1 | B14: A documented traceability program has | K14: 15 | O14: D | P14: 4, 18
B15: been established.
A16: G-2 | B16: The operation has performed a "mock recall" | K16: 10 | O16: R | P16: 5
B17: that was proven to be effective.
A18: Worker Health & Hygiene
A19: Questions | K19: Points | L19: Yes | M19: NO | N19: N/A | O19: Doc | P19: Manual Page
A20: G-3 | B20: Potable water is available to all workers. | K20: 10 | O20: R | P20: 6, 19
A21: G-4 | B21: All employees and all visitors to the location are | K21: 10 | O21: P | P21: 7
B22: required to follow proper sanitation and hygiene
B23: practices.
A24: G-5 | B24: Training on proper sanitation and hygiene | K24: 15 | O24: D | P24: 22
B25: practices is provided to all staff.
A26: G-6 | B26: Employees and visitors are following good | K26: 15
B27: hygiene/sanitation practices.
A28: G-7 | B28: Employees who handle or package produce are | K28: 15
B29: washing their hands before beginning or
B30: returning to work.
A31: G-8 | B31: Readily understandable signs are posted to | K31: 10
B32: instruct employees to wash their hands before
B33: beginning or returning to work.
A34: G-9 | B34: All toilet/restroom/field sanitation facilities are | K34: 15
B35: clean. They are properly supplied with single
B36: use towels, toilet paper, hand soap or anti-
B37: bacterial soap, and potable water for hand
B38: washing.
A39: G-10 | B39: All toilet/restroom/field sanitation facilities are | K39: 10 | O39: R | P39: 7, 20
B40: serviced and cleaned on a scheduled basis.
A41: Questions | K41: Points | L41: Yes | M41: NO | N41: N/A | O41: Doc | P41: Manual Page
A42: G-11 | B42: Smoking and eating are confined to designated | K42: 10 | O42: P | P42: 7
B43: areas separate from where product is handled.
A44: G-12 | B44: Workers with diarrheal disease or symptoms of | K44: 15 | O44: P | P44: 8, 21
B45: other infectious diseases are prohibited from
B46: handling fresh produce.
A47: G-13 | B47: There is a policy describing procedures which | K47: 15 | O47: P | P47: 8, 21
B48: specify handling/disposition of produce or food
B49: contact surfaces that have come into contact
B50: with blood or other bodily fluids.
A51: G-14 | B51: Workers are instructed to seek prompt | K51: 5 | O51: P | P51: 8, 21
B52: treatment with clean first aid supplies for cuts,
B53: abrasions and other injuries.
A54: G-15 | B54: Company personnel or contracted personnel | K54: 10 | O54: R | P54: 9
B55: that apply regulated pre-harvest and/or post
B56: harvest materials are licensed. Company
B57: personnel or contracted personnel applying
B58: non-regulated materials have been trained on
B59: its proper use.
A61: COMMENTS:
A85: Total Points earned for General Questions = | J85: =SUM(L54+L51+L47+L44+L42+L39+L34+L31+L28+L26+L24+L21+L20+L16+L14) -> 0
A86: Total Possible | D86: = | E86: 180 | G86: The total number of points possible for this section.
A87: Subtract "N/A" | D87: = | E87: =N16+N28+N31+N34+N39+N42+N54 -> 0 | G87: Enter the additive number of N/A points (+points) here.
A88: Adjusted Total | D88: = | E88: =E86-E87 -> 180 | G88: Subtract the N/A points from the Total possible points
A89: X .8 (80%) | G89: Multiply the Adjusted Total by .8 and show it as the Passing Score
A90: Passing Score | D90: = | E90: =E88*0.8 -> 144
E92: Pass | I92: Fail | K92: (please mark one)
A94: This program is intended to assess a participant’s efforts to minimize the risk of contamination of fresh fruits, vegetables, nuts and miscellaneous commodities by microbial pathogens based on the U.S. Food and Drug Administration’s “Guide to Minimize Microbial Food Safety Hazards for Fresh Fruits and Vegetables,” and generally recognized good agricultural practices.
A99: For further information regarding the USDA GAP & GHP Audit Program, please contact:
A102: USDA Fruit and Vegetable Program, Specialty Crops Inspection Division, Audit Services Branch at 202-720-5021, or FVAudits@ams.usda.gov

Sheet Part 1-Farm Review (2)
A1: Part 1 - Farm Review
A2: Water Usage
A3: (1-1) | B3: What is the source of irrigation water? (Pond, Stream, Well, Municipal, Other)
A4: Please specify:
A6: (1-2) | B6: How are crops irrigated? (Flood, Drip, Sprinkler, Other) Please specify:
A9: Questions | K9: Points | L9: Yes | M9: NO | N9: N/A | O9: Doc | P9: Manual Page
A10: 1-3 | B10: A water quality assessment has been performed to determine the quality of water used for irrigation purpose on the crop(s) being applied. | K10: 15 | O10: D | P10: 6, 19
A13: 1-4 | B13: A water quality assessment has been performed to determine the quality of water use for chemical application or fertigation method. | K13: 15 | O13: D | P13: 6, 19
A16: 1-5 | B16: If necessary, steps are taken to protect irrigation water from potential direct and non-point source contamination. | K16: 15
A19: Sewage Treatment
A20: Questions | K20: Points | L20: Yes | M20: NO | N20: N/A | O20: Doc | P20: Manual Page
A21: 1-6 | B21: The farm sewage treatment system/septic system is functioning properly and there is no evidence of leaking or runoff. | K21: 15
A24: 1-7 | B24: There is no municipal/commercial sewage treatment facility or waste material landfill adjacent to the farm. | K24: 10
A27: Animals/Wildlife/Livestock
A28: Questions | K28: Points | L28: Yes | M28: NO | N28: N/A | O28: Doc | P28: Manual Page
A29: 1-8 | B29: Crop production areas are not located near or adjacent to dairy, livestock, or fowl production facilities unless adequate barriers exist. | K29: 15
A32: 1-9 | B32: Manure lagoons located near or adjacent to crop production areas are maintained to prevent leaking/overflowing, or measures have been taken to stop runoff from contaminating the crop production areas. | K32: 10
A37: Questions | K37: Points | L37: Yes | M37: NO | N37: N/A | O37: Doc | P37: Manual Page
A38: 1-10 | B38: Manure stored near or adjacent to crop | K38: 10
B39: production areas is contained to prevent
B40: contamination of crops.
A41: 1-11 | B41: Measures are taken to restrict access of | K41: 10
B42: livestock to the source or delivery system of
B43: crop irrigation water.
A44: 1-12 | B44: Crop production areas are monitored for the | K44: 5 | O44: R | P44: 10, 23
B45: presence or signs of wild or domestic animals
B46: the entering the land.
A47: 1-13 | B47: Measures are taken to reduce the opportunity | K47: 5 | O47: R | P47: 10, 23
B48: for wild and/or domestic animals from entering
B49: crop production areas.
A50: Manure and Municipal Biosolids
A51: Please choose one of the following options as it relates to the farm operations:
C52: Option A. Raw manure or a combination of raw and composed manure is
D53: used as a soil amendment.
C54: Option B. Only composted manure/treated municipal biosolids are used as
D55: soil amendments.
C56: Option C. No manure or municipal biosolids of any kind are used as soil
D57: amendments.
A58: Only answer the following manure questions (questions 1-14 to 1-22) that are
A59: assigned to the Option chosen above. DO NOT answer the questions from the other
A60: two options. The points from the manure and municipal biosolids are worth 35 of a
A61: total 190 points, and answering questions from the other two options will cause the
A62: points to calculate incorrectly.
A64: Option A: Raw Manure | K64: Points | L64: Yes | M64: NO | N64: N/A | O64: Doc | P64: Manual Page
A65: 1-14 | B65: When raw manure is applied, it is incorporated | K65: 10 | O65: R | P65: 10, 24
B66: at least 2 weeks prior to planting or a minimum
B67: of 120 days prior to harvest.
A68: 1-15 | B68: Raw manure is not used on commodities that | K68: 10 | O68: R | P68: 10, 24
B69: are harvested within 120 days of planting.
A70: 1-16 | B70: If both raw and treated manure are | K70: 10 | O70: R | P70: 10, 24, 25
B71: used, the treated manure is properly treated,
B72: composted or exposed to reduce the expected
B73: levels of pathogens.
A74: 1-17 | B74: Manure is properly stored prior to use. | K74: 5
A75: Option B: Composted Manure | K75: Points | L75: Yes | M75: NO | N75: N/A | O75: Doc | P75: Manual Page
A76: 1-18 | B76: Only composted manure and/or treated | K76: 10 | O76: R | P76: 10, 24, 25
B77: biosolids are used as a soil amendment.
A78: 1-19 | B78: Composted manure and/or treated biosolids are | K78: 10 | O78: D | P78: 10, 24, 25
B79: properly treated, composted, or exposed to
B80: environmental conditions that would lower the
B81: expected level of pathogens.
A82: 1-20 | B82: Composted manure and/or treated biosolids are | K82: 10
B83: properly stored and are protected to minimize
B84: recontamination.
A85: 1-21 | B85: Analysis reports are available for composted | K85: 5 | O85: R | P85: Need Analysis Report
B86: manure/treated biosolids.
A87: Option C: No Manure/Biosolids Used | K87: Points | L87: Yes | M87: NO | N87: N/A | O87: Doc | P87: Manual Page
A88: 1-22 | B88: No animal manure or municipal biosolids are | K88: 35 | O88: P | P88: 10
B89: used.
A90: Soils
A91: Questions | K91: Points | L91: Yes | M91: NO | N91: N/A | O91: Doc | P91: Manual Page
A92: 1-23 | B92: A previous land use risk assessment has been | K92: 5 | O92: R | P92: 11
B93: performed.
A94: 1-24 | B94: When previous land use history indicates a | K94: 10 | O94: R | P94: 11
B95: possibility of contamination, preventative
B96: measures have been taken to mitigate the
B97: known risks and soils have been tested for
B98: contaminants and the land use is
B99: commensurate with test results.
A100: 1-25 | B100: Crop production areas that have been | K100: 5 | O100: R | P100: 11
B101: subjected to flooding are tested for potential
B102: microbial hazards.
A103: Traceability
A104: Questions | K104: Points | L104: Yes | M104: NO | N104: N/A | O104: Doc | P104: Manual Page
A105: 1-26 | B105: Each production area is identified or coded to | K105: 10 | O105: R | P105: 4, farm map
B106: enable traceability in the event of a recall.
A108: COMMENTS:
A128: Total Points earned for Farm Review = | J128: =L10+L13+L16+L21+L24+L29+L32+L38+L41+L44+L47+L65+L68+L70+L74+L76+L78+L82+L85+L88+L92+L94+L100+L105 -> 0
A129: Total Possible | D129: = | E129: 190 | G129: The total number of points possible for this section.
A130: Subtract "N/A" | D130: = | E130: =N10+N13+N16+N21+N24+N32+N38+N41+N44+N47+N70+N74+N82+N94+N100+N105 -> 0 | G130: Enter the additive number of N/A points (+points) here.
A131: Adjusted Total | D131: = | E131: =E129-E130 -> 190 | G131: Subtract the N/A points from the Total possible points
A132: X .8 (80%) | G132: Multiply the Adjusted Total by .8 and show it as the Passing Score
A133: Passing Score | D133: = | E133: =E131*0.8 -> 152
E135: Pass | I135: Fail | K135: (please mark one)
A137: This program is intended to assess a participant’s efforts to minimize the risk of contamination of fresh
A138: fruits, vegetables, nuts and miscellaneous commodities by microbial pathogens based on the U.S. Food
A139: and Drug Administration’s “Guide to Minimize Microbial Food Safety Hazards for Fresh Fruits and
A140: Vegetables,” and generally recognized good agricultural practices.

Sheet Part 2-Field Harvest & Pack (2
A1: Part 2 - Field Harvest and Field Packing Activities
A2: Field Sanitation and Hygiene
A3: Questions | K3: Points | L3: Yes | M3: NO | N3: N/A | O3: Doc | P3: Manual Page
A4: 2-1 | B4: A documented pre-harvest assessment is made | K4: 15 | O4: D | P4: 13, 18
B5: on the crop production areas. Risks and
B6: possible sources of crop contamination are
B7: noted and assessed.
A8: 2-2 | B8: The number, condition, and placement of field | K8: 10
B9: sanitation units comply with applicable state
B10: and/or federal regulations.
A11: 2-3 | B11: When question 2-2 is answered "N/A" (sanitation | K11: 10
B12: units are not required), a toilet facility is readily
B13: available for all workers.
A14: 2-4 | B14: Field sanitation units are located in a location | K14: 10
B15: that minimizes the potential risk for product
B16: contamination and are directly accessible for
B17: servicing.
A18: 2-5 | B18: A response plan is in place for the event of a | K18: 10 | O18: P | P18: 12
B19: major spill or leak of field sanitation units or
B20: toilet facilities.
A21: Field Harvesting and Transportation
A22: Questions | K22: Points | L22: Yes | M22: NO | N22: N/A | O22: Doc | P22: Manual Page
A23: 2-6 | B23: All harvesting containers and bulk hauling | K23: 10 | O23: D | P23: 12, 26
B24: vehicles that come in direct contact with
B25: product are cleaned and/or sanitized on a
B26: scheduled basis and kept as clean as
B27: practicable.
A28: 2-7 | B28: All hand harvesting equipment and implements | K28: 10 | O28: D | P28: 12, 26
B29: (knives, pruners machetes, etc.) are kept as
B30: clean as practical and are disinfected on a
B31: scheduled basis.
A32: 2-8 | B32: Damaged containers are properly repaired or | K32: 5
B33: disposed of.
A34: 2-9 | B34: Harvesting equipment and/or machinery which | K34: 10
B35: comes into contact with product is in good
B36: repair.
A37: 2-10 | B37: Light bulbs and glass on harvesting equipment | K37: 10
B38: are protected so as not to contaminate produce
B39: or fields in the case of breakage.
A40: Questions | K40: Points | L40: Yes | M40: NO | N40: N/A | O40: Doc | P40: Manual Page
A41: 2-11 | B41: There is a standard operating procedure or | K41: 5 | O41: P | P41: 13
B42: instructions on what measures should be taken
B43: in the case of glass/plastic breakage and
B44: possible contamination during harvesting
B45: operations.
A46: 2-12 | B46: There is a standard operating procedure or | K46: 5 | O46: P | P46: 13
B47: instructions on what measures should be taken
B48: in the case of product contamination by
B49: chemicals, petroleum, pesticides or other
B50: contaminating factors.
A51: 2-13 | B51: For mechanically harvested product, measures | K51: 5
B52: are taken during harvest to inspect for and
B53: remove foreign objects such as glass, metal,
B54: rocks, or other dangerous/toxic items.
A55: 2-14 | B55: Harvesting containers, totes, etc. are not used | K55: 5 | O55: P | P55: 12
B56: for carrying or storing non- produce items
B57: during the harvest season, and farm workers
B58: are instructed in this policy.
A59: 2-15 | B59: Water applied to harvested product is | K59: 15 | O59: R | P59: 6, 19
B60: microbially safe.
A61: 2-16 | B61: Efforts have been made to remove excessive | K61: 5
B62: dirt and mud from product and/or containers
B63: during harvest.
A64: 2-17 | B64: Transportation equipment used to move | K64: 10
B65: product from field to storage areas or storage
B66: areas to processing plant which comes into
B67: contact with product is clean and in good repair.
A68: 2-18 | B68: There is a policy in place and has been | K68: 5 | O68: P | P68: 12
B69: implemented that harvested product being
B70: moved from field to storage areas or processing
B71: plants are covered during transportation.
A72: 2-19 | B72: In ranch or field pack operations, only new or | K72: 10 | O72: D | P72: 13
B73: sanitized containers are used for packing the
B74: product.
A75: 2-20 | B75: Packing materials used in ranch or field pack | K75: 10
B76: operations are properly stored and protected
B77: from contamination.
A78: 2-21 | B78: Product moving out of the field is uniquely | K78: 10 | O78: D | P78: 4, 18
B79: identified to enable traceability in the event of
B80: a recall.
A82: COMMENTS:
A98: Total Points earned for Field Harvesting & Field Packaging = | J98: =L4+L8+L11+L14+L18+L23+L28+L32+L34+L37+L41+L46+L51+L55+L59+L61+L64+L68+L72+L75+L78 -> 0
A99: Total Possible | D99: = | E99: 185 | G99: The total number of points possible for this section.
A100: Subtract "N/A" | D100: = | E100: =N8+N11+N14+N18+N28+N32+N34+N37+N41+N46+N51+N59+N61+N64+N72+N75 -> 0 | G100: Enter the additive number of N/A points (+points) here.
A101: Adjusted Total | D101: = | E101: =E99-E100 -> 185 | G101: Subtract the N/A points from the Total possible points
A102: X .8 (80%) | G102: Multiply the Adjusted Total by .8 and show it as the Passing Score
A103: Passing Score | D103: = | E103: =E101*0.8 -> 148
E105: Pass | I105: Fail | K105: (please mark one)
A107: This program is intended to assess a participant’s efforts to minimize the risk of contamination of fresh
A108: fruits, vegetables, nuts and miscellaneous commodities by microbial pathogens based on the U.S. Food
A109: and Drug Administration’s “Guide to Minimize Microbial Food Safety Hazards for Fresh Fruits and
A110: Vegetables,” and generally recognized good agricultural practices.

Sheet Part 3-House Packing Facilt (2
A1: Part 3 - HOUSE PACKING FACILITY
A2: Receiving
A3: Questions | K3: Points | L3: Yes | M3: NO | N3: N/A | O3: Doc | P3: Manual Page
A4: 3-1 | B4: Product delivered from the field which is held in | K4: 5
B5: a staging area prior to packing or processing is
B6: protected from possible contamination.
A7: 3-2 | B7: Prior to packing, product is properly stored | K7: 5
B8: and/or handled in order to reduce possible
B9: contamination.
A10: Washing/Packing Line
A11: Questions | K11: Points | L11: Yes | M11: NO | N11: N/A | O11: Doc | P11: Manual Page
A12: 3-3 | B12: Source water used in the packing operation is | K12: 15 | O12: R | P12: 6, 19
B13: potable.
A14: 3-4 | B14: If applicable, the temperature of processing | K14: 10 | O14: D | P14: 14
B15: water used in dump tanks, flumes, etc., is
B16: monitored and is kept at temperatures
B17: appropriate for the commodity.
A18: 3-5 | B18: Processing water is sufficiently treated to | K18: 10 | O18: D | P18: 14
B19: reduce microbial contamination.
A20: 3-6 | B20: Water-contact surfaces, such as dump tanks, | K20: 10 | O20: D | P20: 14, 26
B21: flumes, wash tanks and hydro coolers, are
B22: cleaned and/or sanitized on a scheduled basis.
A23: 3-7 | B23: Water treatment (strength levels and pH) and | K23: 10 | O23: D | P23: 14
B24: exposure time is monitored and the facility has
B25: demonstrated it is appropriate for the product.
A26: 3-8 | B26: Food contact surfaces are in good condition; | K26: 15 | O26: D | P26: 14, 26
B27: cleaned and/or sanitized prior to use and
B28: cleaning logs are maintained.
A29: 3-9 | B29: Product flow zones are protected from sources | K29: 10
B30: of contamination.
A31: 3-10 | B31: The water used for cooling and/or making ice | K31: 15 | O31: R | P31: 14, 19
B32: is potable.
A33: 3-11 | B33: Any ice used for cooling produce is | K33: 10 | O33: R | P33: 14, 19
B34: manufactured, transported and stored under
B35: sanitary conditions.
A36: Packing House Worker Health & Hygiene
A37: Questions | K37: Points | L37: Yes | M37: NO | N37: N/A | O37: Doc | P37: Manual Page
A38: 3-12 | B38: Employee facilities (locker rooms, lunch and | K38: 10
B39: break areas, etc.) are clean and located away
B40: from packing area.
A41: 3-13 | B41: When there is a written policy regarding the use | K41: 5 | O41: P | P41: 7
B42: of hair nets/beard nets in the production area, it
B43: is being followed by all employees and visitors.
A44: 3-14 | B44: When there is a written policy regarding the | K44: 5 | O44: P | P44: 7
B45: wearing of jewelry in the production area, it is
B46: being followed by all employees and visitors.
A47: Packing House General Housekeeping
A48: Questions | K48: Points | L48: Yes | M48: NO | N48: N/A | O48: Doc | P48: Manual Page
A49: 3-15 | B49: Only food grade approved and labeled | K49: 10 | O49: R | P49: 14
B50: lubricants are used in the packing
B51: equipment/machinery.
A52: 3-16 | B52: Chemicals not approved for use on product are | K52: 10
B53: stored and segregated away from packing area.
A54: 3-17 | B54: The plant grounds are reasonably free of litter | K54: 5
B55: and debris.
A56: 3-18 | B56: The plant grounds are reasonably free of | K56: 5
B57: standing water.
A58: 3-19 | B58: Outside garbage receptacles/dumpsters are | K58: 5
B59: closed or are located away from packing facility
B60: entrances and the area around such sites is
B61: reasonably clean.
A62: 3-20 | B62: Packing facilities are enclosed. | K62: 5
A63: 3-21 | B63: The packing facility interior is clean and | K63: 5
B64: maintained in an orderly manner.
A65: 3-22 | B65: Floor drains appear to be free of obstructions. | K65: 5
A66: 3-23 | B66: Pipes, ducts, fans and ceilings which are over | K66: 5
B67: food handling operations, are clean.
A68: 3-24 | B68: Glass materials above product flow zones are | K68: 10
B69: contained in case of breakage.
A70: 3-25 | B70: Possible wastewater spillage is prevented from | K70: 10
B71: contaminating any food handling area by
B72: barriers, drains, or a sufficient distance.
A73: 3-26 | B73: There is a policy describing procedures which | K73: 15 | O73: P | P73: 14
B74: specify handling/disposition of finished product
B75: that is opened, spilled, or comes into contact
B76: with the floor.
A77: Questions | K77: Points | L77: Yes | M77: NO | N77: N/A | O77: Doc | P77: Manual Page
A78: 3-27 | B78: Only new or sanitized containers are used | K78: 10 | O78: D | P78: 13
B79: for packing the product.
A80: 3-28 | B80: Pallets and containers are clean and | K80: 5
B81: in good condition.
A82: 3-29 | B82: Packing containers are properly stored and | K82: 10
B83: protected from contamination (birds, rodents,
B84: and other pests).
A85: Pest Control
A86: Questions | K86: Points | L86: Yes | M86: NO | N86: N/A | O86: Doc | P86: Manual Page
A87: 3-30 | B87: Measures are taken to exclude animals or | K87: 10 | O87: D | P87: 15, 27
B88: pests from packing and storage facilities.
A89: 3-31 | B89: There is an established pest control program | K89: 10 | O89: D | P89: 15, 27
B90: for the facility.
A91: 3-32 | B91: Service reports for the pest control program | K91: 5 | O91: R | P91: 27
B92: are available for review.
A93: 3-33 | B93: Interior walls, floors and ceilings are well | K93: 5
B94: maintained and are free of major cracks and
B95: crevices.
A96: Traceability
A97: Questions | K97: Points | L97: Yes | M97: NO | N97: N/A | O97: Doc | P97: Manual Page
A98: 3-34 | B98: Records are kept recording the source of | K98: 10 | O98: D | P98: 4
B99: incoming product and the destination of
B100: outgoing product which is uniquely identified to
B101: enable traceability.
A103: COMMENTS:
A127: Total Points earned for House Packing Facility = | J127: =L4+L7+L12+L14+L18+L20+L23+L26+L29+L31+L33+L38+L41+L44+L49+L52+L54+L56+L58+L62+L63+L65+L66+L68+L70+L73+L78+L80+L82+L87+L89+L91+L93+L98 -> 0
A128: Total Possible | D128: = | E128: 290 | G128: The total number of points possible for this section.
A129: Subtract "N/A" | D129: = | E129: =N4+N12+N14+N18+N20+N23+N26+N29+N31+N33+N41+N44+N49+N52+N58+N65+N68+N80+N91 -> 0 | G129: Enter the additive number of N/A points (+points) here.
A130: Adjusted Total | D130: = | E130: =E128-E129 -> 290 | G130: Subtract the N/A points from the Total possible points
A131: X .8 (80%) | G131: Multiply the Adjusted Total by .8 and show it as the Passing Score
A132: Passing Score | D132: = | E132: =E130*0.8 -> 232
E134: Pass | I134: Fail | K134: (please mark one)
A136: This program is intended to assess a participant’s efforts to minimize the risk of contamination of fresh
A137: fruits, vegetables, nuts and miscellaneous commodities by microbial pathogens based on the U.S. Food
A138: and Drug Administration’s “Guide to Minimize Microbial Food Safety Hazards for Fresh Fruits and
A139: Vegetables,” and generally recognized good agricultural practices.

Sheet Part 4-Storage & Transporta (2
A1: Part 4 - STORAGE AND TRANSPORTATION
A2: Product, Containers & Pallets
A3: Questions | K3: Points | L3: Yes | M3: NO | N3: N/A | O3: Doc | P3: Manual Page
A4: 4-1 | B4: The storage facility is cleaned and maintained in | K4: 5
B5: an orderly manner.
A6: 4-2 | B6: Bulk storage facilities are inspected for foreign | K6: 5 | O6: R | P6: 16
B7: material prior to use and records are maintained.
A8: 4-3 | B8: Storage rooms, buildings, and/or facilities are | K8: 10
B9: maintained and sufficiently sealed or isolated
B10: and are protected from external contamination.
A11: 4-4 | B11: Storage grounds are reasonably free of litter | K11: 5
B12: and debris.
A13: 4-5 | B13: Floors in storage areas are reasonably | K13: 5
B14: free of standing water.
A15: 4-6 | B15: Possible wastewater spillage is prevented from | K15: 10
B16: contaminating any food handling area by
B17: barriers, drains, or sufficient distance.
A18: 4-7 | B18: There is a policy describing procedures which | K18: 15 | O18: P | P18: 16
B19: specify handling/disposition of finished product
B20: which is opened, spilled, or comes into contact
B21: with the floor.
A22: 4-8 | B22: Packing containers are properly stored and | K22: 10
B23: sufficiently sealed, to be protected from
B24: contamination (birds, rodents, pests, and other
B25: contaminants).
A26: 4-9 | B26: Pallets, pallet boxes, tote bags, and portable | K26: 5
B27: bins, etc. are clean, in good condition and do
B28: not contribute foreign material to the product.
A29: 4-10 | B29: Product stored outside in totes, trucks, bins, | K29: 10
B30: other containers or on the ground in bulk is
B31: covered and protected from contamination.
A32: 4-11 | B32: Non-food grade substances such as paints, | K32: 10
B33: lubricants, pesticides, etc., are not stored in
B34: close proximity to the product.
A35: 4-12 | B35: Mechanical equipment used during the storage | K35: 5 | O35: D | P35: 16
B36: process is clean and maintained to prevent
B37: contamination of the product.
A38: Pest Control
A39: Questions | K39: Points | L39: Yes | M39: NO | N39: N/A | O39: Doc | P39: Manual Page
A40: 4-13 | B40: Measures are taken to exclude animals or pests | K40: 10 | O40: D | P40: 15, 27
B41: from storage facilities.
A42: 4-14 | B42: There is an established pest control program | K42: 10 | O42: D | P42: 15, 27
B43: for the facility.
A44: 4-15 | B44: Service reports for the pest control program are | K44: 5 | O44: R | P44: 27
B45: available for review.
A46: 4-16 | B46: Interior walls, floors, and ceilings are well- | K46: 5
B47: maintained and are free of major cracks and
B48: crevices.
A49: Ice & Refrigeration
A50: Questions | K50: Points | L50: Yes | M50: NO | N50: N/A | O50: Doc | P50: Manual Page
A51: 4-17 | B51: The water used for cooling and/or making ice is | K51: 15 | O51: R | P51: 6, 19
B52: potable.
A53: 4-18 | B53: Manufacturing, storage, and transportation | K53: 10 | O53: R | P53: 16, 26
B54: facilities used in making and delivering ice used
B55: for cooling the product have been sanitized.
A56: 4-19 | B56: Climate-controlled rooms are monitored for | K56: 5 | O56: D | P56: 16, 28
B57: temperature and logs are maintained.
A58: 4-20 | B58: Thermometer(s) are checked for accuracy and | K58: 5 | O58: D | P58: 28
B59: records are available for review.
A60: 4-21 | B60: Refrigeration system condensation does not | K60: 10
B61: come in contact with produce.
A62: 4-22 | B62: Refrigeration equipment (condensers, fans, etc.) | K62: 10 | O62: D | P62: 16, 28
B63: is cleaned on a scheduled basis.
A64: 4-23 | B64: Iced product does not drip on pallets of produce | K64: 10
B65: stored below.
A66: Transportation
A67: Questions | K67: Points | L67: Yes | M67: NO | N67: N/A | O67: Doc | P67: Manual Page
A68: 4-24 | B68: Prior to the loading process, conveyances are | K68: 10 | O68: P | P68: 17, 26
B69: required to be clean, in good physical condition,
B70: free from disagreeable odors, and from obvious
B71: dirt/debris.
A72: 4-25 | B72: Produce items are not loaded with potentially | K72: 10 | O72: P | P72: 17
B73: contaminating products.
A74: 4-26 | B74: Company has a written policy for transporters | K74: 10 | O74: P | P74: 17
B75: and conveyances to maintain a specified
B76: temperature(s) during transit.
A77: 4-27 | B77: Conveyances are loaded to minimize damage to | K77: 5 | O77: P | P77: 17
B78: product.
A79: Worker Health and Personal Hygiene
A80: Questions | K80: Points | L80: Yes | M80: NO | N80: N/A | O80: Doc | P80: Manual Page
A81: 4-28 | B81: Employee facilities (locker rooms, lunch and | K81: 10
B82: break areas, etc.) are clean and located away
B83: from storage, shipping, and receiving areas.
A84: 4-29 | B84: When there is a written policy regarding the use | K84: 5 | O84: P | P84: 7
B85: of hair/beard nets in the storage and
B86: transportation areas, it is being followed by all
B87: affected employees and visitors.
A88: 4-30 | B88: When there is a written policy restricting the | K88: 5 | O88: P | P88: 7
B89: wearing of jewelry in the storage and
B90: transportation areas, it is being followed by all
B91: affected employees and visitors.
A92: Traceability
A93: Questions | K93: Points | L93: Yes | M93: NO | N93: N/A | O93: Doc | P93: Manual Page
A94: 4-31 | B94: Records are kept regarding the source of | K94: 10 | O94: D | P94: 4
B95: incoming product and the destination of
B96: outgoing product which is uniquely identified
B97: to enable traceability.
A99: COMMENTS:
A123: Total Points earned for Storage & Transportation = | J123: =SUM(L94+L88+L84+L81+L77+L74+L72+L68+L64+L62+L60+L58+L53+L51+L46+L44+L42+L40+L35+L32+L29+L22+L18+L15+L13+L11+L8+L6+L4+L26+L56) -> 0
A124: Total Possible | D124: = | E124: 255 | G124: The total number of points possible for this section.
A125: Subtract "N/A" | D125: = | E125: =SUM(N94+N88+N84+N81+N77+N74+N72+N68+N64+N62+N60+N58+N56+N53+N51+N46+N44+N42+N40+N35+N32+N29+N26+N22+N18+N15+N11+N13+N8+N6+N4) -> 0 | G125: Enter the additive number of N/A points (+points) here.
A126: Adjusted Total | D126: = | E126: =E124-E125 -> 255 | G126: Subtract the N/A points from the Total possible points
A127: X .8 (80%) | G127: Multiply the Adjusted Total by .8 and show it as the Passing Score
A128: Passing Score | D128: = | E128: =E126*0.8 -> 204
E130: Pass | I130: Fail | K130: (please mark one)
A132: This program is intended to assess a participant’s efforts to minimize the risk of contamination of fresh
A133: fruits, vegetables, nuts and miscellaneous commodities by microbial pathogens based on the U.S. Food
A134: and Drug Administration’s “Guide to Minimize Microbial Food Safety Hazards for Fresh Fruits and
A135: Vegetables,” and generally recognized good agricultural practices.

Sheet Audit Scoresheet
A1: United States Department of Agriculture | F1: Good Agricultural Practices & Good Handling Practices
A2: Agricultural Marketing Services | F2: Audit Verification Program Scoresheet www.ams.usda.gov/gapghp
A3: Specialty Crops Inspection Division
A4: Facility Name (Print) as it should appear on Certificate:
C5: ='[1]Page 1-3'!D17 -> 0
A6: Street Address (Print): | H6: City (Print): | Q6: State (Print): | T6: Zip (Print):
A7: ='[1]Page 1-3'!E19 -> 0 | H7: ='[1]Page 1-3'!B20 -> 0 | Q7: ='[1]Page 1-3'!H20 -> 0 | T7: ='[1]Page 1-3'!M20 -> 0
A8: e-mail Address (Print): | H8: fax number: | Q8: Date Audit Requested:
A9: ='[1]Page 1-3'!C24 -> 0 | H9: ='[1]Page 1-3'!J23 -> 0 | Q9: Date of Previous Audit :
A10: Date Audit Began: | C10: ='[1]Page 1-3'!E29 -> 00:00:00 | I10: Date Audit Completed: | M10: ='[1]Page 1-3'!E30 -> 00:00:00 | Q10: USDA Commodity Procurement Audit?
A11: Time Audit Began: | C11: ='[1]Page 1-3'!J29 -> 00:00:00 | I11: Time Audit Completed: | M11: ='[1]Page 1-3'!J30 -> 00:00:00 | Q11: Check One | S11: Yes | U11: No
A13: EVALUATION ELEMENTS
A14: Scopes | B14: Element | F14: Possible | G14: Less N/A | I14: Adjusted | K14: Passing | M14: Facility | N14: Pass | P14: Date | R14: General | T14: Reviewing | W14: Unannounced
A15: Requested | F15: Points | G15: Points | I15: Points | K15: Score* | M15: Score | N15: Fail | P15: Passed | R15: Questions | T15: Official
A16: X | B16: General Questions | F16: 180 | G16: ='[1]Pg. 4 General Questions'!E87 -> 0 | I16: ='[1]Pg. 4 General Questions'!E88 -> 180 | K16: ='[1]Pg. 4 General Questions'!E90 -> 144 | M16: ='[1]Pg. 4 General Questions'!J85 -> 0
A17: ='[1]Page 1-3'!P61 -> 0 | B17: Part 1 – Farm Review | F17: 190 | G17: ='[1]Part 1-Farm Review'!E130 -> 0 | I17: ='[1]Part 1-Farm Review'!E131 -> 190 | K17: ='[1]Part 1-Farm Review'!E133 -> 152 | M17: ='[1]Part 1-Farm Review'!J128 -> 0
A18: ='[1]Page 1-3'!P63 -> 0 | B18: Part 2 – Field Harvesting & Field | F18: 185 | G18: ='[1]Part 2-Field Harvest & Packing '!E100 -> 0 | I18: ='[1]Part 2-Field Harvest & Packing '!E101 -> 185 | K18: ='[1]Part 2-Field Harvest & Packing '!E103 -> 148 | M18: ='[1]Part 2-Field Harvest & Packing '!J98 -> 0
B19: Packing Activities
A20: ='[1]Page 1-3'!P65 -> 0 | B20: Part 3 – House Packing Facility | F20: 290 | G20: ='[1]Part 3-House Packing Facilty'!E129 -> 0 | I20: ='[1]Part 3-House Packing Facilty'!E130 -> 290 | K20: ='[1]Part 3-House Packing Facilty'!E132 -> 232 | M20: ='[1]Part 3-House Packing Facilty'!J127 -> 0
A21: ='[1]Page 1-3'!P67 -> 0 | B21: Part 4 – Storage and | F21: 255 | G21: ='[1]Part 4-Storage & Transportation'!E125 -> 0 | I21: ='[1]Part 4-Storage & Transportation'!E126 -> 255 | K21: ='[1]Part 4-Storage & Transportation'!E128 -> 204 | M21: ='[1]Part 4-Storage & Transportation'!J123 -> 0
B22: Transportation
A23: ='[1]Page 1-3'!P71 -> 0 | B23: Part 6 – Wholesale Distribution | F23: 410 | G23: =#REF! ->  | I23: =#REF! ->  | K23: =#REF! ->  | M23: =#REF! -> 
B24: Center/ Warehouses
A25: ='[1]Page 1-3'!P73 -> 0 | B25: Part 7 – Preventative Food | F25: 180 | G25: =#REF! ->  | I25: =#REF! ->  | K25: =#REF! ->  | M25: =#REF! -> 
B26: Defense Procedures
A27: *A Passing Score is 80% of the Possible Points, or the Adjusted Points if adjustments are necessary, with no "automatic unsatisfactory" conditions.
A28: Commodities: | C28: ='[1]Page 1-3'!D75 -> 0
A32: Send completed GAP&GHP Certificate to: (choose one) | G32: Inspection office: (list office) | Q32: Directly to auditee above:
A33: Lead Auditor Name (Print): | L33: Signature & Date:
A34: Duty Station: | C34: ='[1]Page 1-3'!J28 -> 0 | R34: All Scopes Completed:
A36: For USDA HQ use:

Sheet Corrective Action Report (2)
A1: USDA Good Agricultural Practices and Good Handling Practices
A2: USDA Checklist
A5: USDA, AMS, Fruit and Vegetable Program | F5: Report #:
A6: Good Agricultural Practice & Good Handling Practices | H6: of
A7: CORRECTIVE ACTION REPORT
A8: Company Name/Farm: | C8: ='Page 1-3 (2)'!D17 -> 0 | F8: Date: | G8: ='Page 1-3 (2)'!E30 -> 00:00:00
A10: Lead Auditor: | C10: =#REF! -> 
A12: Crops(s): | B12: ='Page 1-3 (2)'!D75 -> 0
A14: Description of Non Conformity:
A24: Notified company staff at time of finding non-conformity (Yes or No):
A25: Checklist question number and/or section of auditee food safety plan associated with non-conformity:
A26: Corrective Action Proposed and Time Frame for Implementation: (Attach separate sheet if necessary)
A39: Company Representative Signature:
A41: Signature affirms statements concerning Non-Conformity, Corrective Action, and Implementation are correct.
A42: Auditor signature for acceptance of proposed corrective action and timetable for implementation:
A45: Top portion for AUDITOR USE ONLY; bottom portion for Company and Auditor use.
